[Event "Kragero Resort Chess A 2019"]
[Site "Kragero"]
[Date "2019.02.22"]
[Round "4.25"]
[White "Heimisson, Hilmir Freyr"]
[Black "Holleland, Sigve"]
[Result "0-1"]
[ECO "B20"]
[WhiteElo "2394"]
[BlackElo "2009"]
[Annotator "NA"]
[PlyCount "90"]
[EventDate "2019.02.20"]
[EventType "swiss"]
[EventCountry "NOR"]
[SourceTitle "playchess.com"]
[Source "ChessBase"]
[SourceQuality "1"]
[TimeControl "5400+30"]

1. e4 {[%emt 0:00:00]} c5 {[%emt 0:01:11]} 2. b3 {[%emt 0:00:00]} Nc6 {[%emt 0:01:43]} 3. Bb2 {[%emt 0:00:00]} d6 {[%emt 0:02:58]} 4. f4 {[%emt 0:04:19]} Nf6 {[%emt 0:01:46]} 5. e5 {[%emt 0:06:01]} Nd5 {[%emt 0:09:18]} 6. Bc4 {[%emt 0:15:21]} Nxf4 {[%emt 0:08:36]} 7. Qf3 {[%emt 0:00:25]} dxe5 {[%emt 0:04:06]} 8. Bxf7+ {[%emt 0:09:22]} Kxf7 {[%emt 0:00:24]} 9. Bxe5 {[%emt 0:00:04]} Nxe5 {[%emt 0:05:51]} 10. Qxf4+ {[%emt 0:00:05]} Ke6 {[%emt 0:01:15]} 11. Ne2 {[%emt 0:00:39]} Ng6 $19 {[%emt 0:10:19]} 12. Qe4+ {[%emt 0:04:09]} Kd7 {[%emt 0:16:07]} 13. Nbc3 {[%emt 0:03:21]} e6 {[%emt 0:04:39]} 14. h4 {[%emt 0:00:06]} Bd6 {[%emt 0:05:12]} 15. O-O-O {[%emt 0:01:04]} a6 {[%emt 0:02:22]} 16. d4 {[%emt 0:06:34]} c4 {[%emt 0:00:05]} 17. d5 {[%emt 0:01:18]} e5 {[%emt 0:00:06]} 18. h5 {[%emt 0:00:27]} Qg5+ {[%emt 0:02:31]} 19. Kb1 {[%emt 0:00:49]} Ne7 {[%emt 0:01:42]} 20. Na4 {[%emt 0:03:11]} Kc7 {[%emt 0:02:14]} 21. Qxc4+ {[%emt 0:02:26]} Kb8 {[%emt 0:00:07]} 22. Nb6 {[%emt 0:00:20]} Bf5 {[%emt 0:00:45]} 23. Nc3 {[%emt 0:13:17]} Ka7 {[%emt 0:02:34]} 24. Nb5+ {[%emt 0:03:02]} axb5 {[%emt 0:01:22]} 25. Qxb5 {[%emt 0:00:02]} Kb8 {[%emt 0:01:28]} 26. g4 {[%emt 0:02:51]} Qxg4 {[%emt 0:02:20]} 27. Rhg1 {[%emt 0:01:09]} Qe4 {[%emt 0:01:28]} 28. Rd3 {[%emt 0:01:32]} Rc8 {[%emt 0:02:14]} 29. Nxc8 {[%emt 0:00:45]} Nxc8 {[%emt 0:00:42]} 30. a4 {[%emt 0:01:28]} Qb4 {[%emt 0:02:06]} 31. Qxb4 {[%emt 0:00:52]} Bxb4 {[%emt 0:00:04]} 32. Rf3 {[%emt 0:00:07]} g6 {[%emt 0:00:46]} 33. Kb2 {[%emt 0:00:47]} Nd6 {[%emt 0:01:46]} 34. hxg6 {[%emt 0:00:14]} hxg6 {[%emt 0:00:22]} 35. c3 {[%emt 0:00:11]} Bc5 {[%emt 0:01:00]} 36. Re1 {[%emt 0:00:01]} e4 {[%emt 0:00:43]} 37. Rff1 {[%emt 0:00:01]} Kc7 {[%emt 0:00:49]} 38. b4 {[%emt 0:00:13]} Nc4+ {[%emt 0:00:55]} 39. Ka2 {[%emt 0:00:01]} Bd6 {[%emt 0:02:17]} 40. Rh1 {[%emt 0:00:14]} Rxa4+ {[%emt 0:00:18]} 41. Kb3 {[%emt 0:00:01]} b5 {[%emt 0:00:11]} 42. Rh7+ {[%emt 0:00:25]} Kb6 {[%emt 0:00:32]} 43. Reh1 {[%emt 0:00:05]} Ra3+ {[%emt 0:00:53]} 44. Kc2 {[%emt 0:00:18]} e3+ {[%emt 0:00:11]} 45. Kd1 {[%emt 0:00:03]} Bd3 {[%emt 0:01:12]} 0-1

[Event "Kragero Resort Chess A 2019"]
[Site "Kragero"]
[Date "2019.02.22"]
[Round "4.26"]
[White "Shehzad, Shazil"]
[Black "Ingebretsen, Jens E"]
[Result "0-1"]
[ECO "C47"]
[WhiteElo "1959"]
[BlackElo "2297"]
[Annotator "NA"]
[PlyCount "64"]
[EventDate "2019.02.20"]
[EventType "swiss"]
[EventCountry "NOR"]
[SourceTitle "playchess.com"]
[Source "ChessBase"]
[SourceQuality "1"]
[TimeControl "5400+30"]

1. e4 {[%emt 0:00:00]} e5 {[%emt 0:02:11]} 2. Nf3 {[%emt 0:00:00]} Nc6 {[%emt 0:00:09]} 3. Nc3 {[%emt 0:00:00]} Nf6 {[%emt 0:00:18]} 4. d4 {[%emt 0:00:06]} exd4 {[%emt 0:00:09]} 5. Nxd4 {[%emt 0:00:06]} Bb4 {[%emt 0:00:05]} 6. Nxc6 {[%emt 0:00:09]} bxc6 {[%emt 0:00:07]} 7. Bd3 {[%emt 0:00:03]} d5 {[%emt 0:00:33]} 8. exd5 {[%emt 0:00:08]} cxd5 {[%emt 0:00:06]} 9. O-O {[%emt 0:00:06]} O-O {[%emt 0:00:13]} 10. Bg5 {[%emt 0:00:05]} c6 {[%emt 0:00:04]} 11. Na4 {[%emt 0:00:23]} Bd6 {[%emt 0:01:41]} 12. Re1 {[%emt 0:00:54]} Be6 {[%emt 0:01:26]} 13. c3 {[%emt 0:00:06]} c5 {[%emt 0:01:33]} 14. Bc2 $11 {[%emt 0:01:06]} Rc8 {[%emt 0:03:59]} 15. Qd3 {[%emt 0:02:48]} c4 {[%emt 0:01:21]} 16. Qf3 {[%emt 0:03:50]} h6 {[%emt 0:02:25]} 17. Bh4 {[%emt 0:01:56]} Bb8 {[%emt 0:05:15]} 18. Bg3 {[%emt 0:19:31]} d4 {[%emt 0:02:06]} 19. Bxb8 {[%emt 0:02:39]} Rxb8 {[%emt 0:00:29]} 20. cxd4 {[%emt 0:00:59]} Qxd4 {[%emt 0:00:52]} 21. Rad1 {[%emt 0:01:40]} Qh4 {[%emt 0:00:25]} 22. Qg3 {[%emt 0:02:24]} Qxg3 {[%emt 0:00:42]} 23. hxg3 {[%emt 0:00:36]} Rfc8 {[%emt 0:03:51]} 24. Re5 {[%emt 0:02:33]} Bd7 {[%emt 0:01:44]} 25. Rd2 {[%emt 0:03:28]} Rc7 {[%emt 0:07:38]} 26. Rc5 {[%emt 0:06:43]} Rxc5 {[%emt 0:09:51]} 27. Nxc5 {[%emt 0:00:14]} Bc6 {[%emt 0:00:18]} 28. Ba4 {[%emt 0:01:49]} c3 {[%emt 0:00:52]} 29. Rd1 {[%emt 0:07:29]} cxb2 {[%emt 0:01:13]} 30. Bb3 {[%emt 0:03:03]} Ne4 {[%emt 0:01:00]} 31. Rb1 {[%emt 0:00:50]} Nxc5 {[%emt 0:00:12]} 32. Rxb2 {[%emt 0:00:07]} Nxb3 {[%emt 0:00:04]} 0-1

[Event "Kragero Resort Chess A 2019"]
[Site "Kragero"]
[Date "2019.02.22"]
[Round "4.27"]
[White "Mashinskaya, Iulia"]
[Black "Eliseev, Sergey"]
[Result "1-0"]
[ECO "B07"]
[WhiteElo "2261"]
[BlackElo "1794"]
[Annotator "NA"]
[PlyCount "87"]
[EventDate "2019.02.20"]
[EventType "swiss"]
[EventCountry "NOR"]
[SourceTitle "playchess.com"]
[Source "ChessBase"]
[SourceQuality "1"]
[TimeControl "5400+30"]

1. d4 {[%emt 0:00:00]} g6 {[%emt 0:00:00]} 2. e4 {[%emt 0:00:45]} d6 {[%emt 0:00:00]} 3. Nc3 {[%emt 0:00:45]} Bg7 {[%emt 0:00:02]} 4. Be3 {[%emt 0:01:34]} Nf6 {[%emt 0:00:13]} 5. h3 {[%emt 0:00:25]} O-O {[%emt 0:00:17]} 6. g4 {[%emt 0:02:45]} e5 {[%emt 0:13:03]} 7. Bg2 {[%emt 0:10:31]} exd4 {[%emt 0:15:23]} 8. Bxd4 {[%emt 0:00:45]} Nc6 {[%emt 0:01:00]} 9. Be3 {[%emt 0:00:47]} Re8 $11 {[%emt 0:09:03]} 10. Nge2 {[%emt 0:01:50]} h5 {[%emt 0:04:09]} 11. g5 {[%emt 0:04:57]} Nd7 {[%emt 0:00:45]} 12. O-O {[%emt 0:08:19]} Nb6 {[%emt 0:03:04]} 13. b3 {[%emt 0:05:36]} Be6 {[%emt 0:06:31]} 14. Qd2 {[%emt 0:04:07]} Qd7 {[%emt 0:05:05]} 15. Kh2 {[%emt 0:06:35]} Red8 {[%emt 0:07:15]} 16. Rad1 {[%emt 0:02:52]} Ne7 {[%emt 0:01:35]} 17. a4 {[%emt 0:13:18]} c6 {[%emt 0:04:46]} 18. a5 {[%emt 0:06:12]} Nbc8 {[%emt 0:00:12]} 19. Bd4 {[%emt 0:03:16]} Bxd4 {[%emt 0:04:27]} 20. Qxd4 {[%emt 0:02:02]} Qc7 {[%emt 0:00:33]} 21. b4 {[%emt 0:01:20]} d5+ {[%emt 0:06:52]} 22. f4 {[%emt 0:02:17]} Nd6 {[%emt 0:03:41]} 23. Qe5 {[%emt 0:10:48]} Ne8 {[%emt 0:05:26]} 24. exd5 {[%emt 0:02:56]} Qxe5 {[%emt 0:00:51]} 25. fxe5 {[%emt 0:00:02]} Bxd5 {[%emt 0:01:34]} 26. Nxd5 {[%emt 0:00:26]} Nxd5 {[%emt 0:00:27]} 27. Bxd5 {[%emt 0:00:53]} cxd5 {[%emt 0:00:27]} 28. Nf4 {[%emt 0:02:14]} Rac8 {[%emt 0:01:37]} 29. Rf2 {[%emt 0:01:55]} Nc7 {[%emt 0:02:28]} 30. Rdd2 {[%emt 0:01:28]} Kg7 {[%emt 0:00:52]} 31. Kg3 {[%emt 0:01:03]} Rd7 {[%emt 0:00:46]} 32. Rfe2 {[%emt 0:00:39]} Ne6 {[%emt 0:01:31]} 33. Nxd5 {[%emt 0:01:42]} Nxg5 {[%emt 0:00:40]} 34. h4 {[%emt 0:00:09]} Ne6 {[%emt 0:00:26]} 35. Nf6 {[%emt 0:00:57]} Rc3+ {[%emt 0:00:38]} 36. Kf2 {[%emt 0:00:26]} Rxd2 {[%emt 0:00:43]} 37. Rxd2 {[%emt 0:00:02]} Rc4 {[%emt 0:00:07]} 38. b5 {[%emt 0:00:44]} Rc5 {[%emt 0:00:50]} 39. b6 {[%emt 0:00:56]} Rxe5 {[%emt 0:01:18]} 40. Ne8+ {[%emt 0:00:38]} Kf8 {[%emt 0:00:16]} 41. a6 {[%emt 0:00:19]} Nc5 {[%emt 0:00:57]} 42. Nf6 {[%emt 0:00:46]} Rf5+ {[%emt 0:00:23]} 43. Kg2 {[%emt 0:00:06]} bxa6 {[%emt 0:00:23]} 44. bxa7 {[%emt 0:00:14]} 1-0

[Event "Kragero Resort Chess A 2019"]
[Site "Kragero"]
[Date "2019.02.22"]
[Round "4.28"]
[White "Albzour, Abdalsalam"]
[Black "Skotheim, Andreas"]
[Result "0-1"]
[ECO "B44"]
[WhiteElo "1869"]
[BlackElo "2168"]
[Annotator "NA"]
[PlyCount "86"]
[EventDate "2019.02.20"]
[EventType "swiss"]
[EventCountry "NOR"]
[SourceTitle "playchess.com"]
[Source "ChessBase"]
[SourceQuality "1"]
[TimeControl "5400+30"]

1. e4 {[%emt 0:00:31]} c5 {[%emt 0:00:00]} 2. Nf3 {[%emt 0:00:05]} e6 {[%emt 0:00:00]} 3. d4 {[%emt 0:00:23]} cxd4 {[%emt 0:00:00]} 4. Nxd4 {[%emt 0:00:09]} Nc6 {[%emt 0:00:00]} 5. Be3 {[%emt 0:00:39]} Nf6 {[%emt 0:00:51]} 6. Nd2 {[%emt 0:00:24]} Qc7 {[%emt 0:15:37]} 7. Be2 {[%emt 0:02:46] B44: Sicilian: Taimanov: 5 Nb5} d5 {[%emt 0:04:16]} (7... a6 8. O-O d6 9. Kh1 Bd7 10. f4 Be7 11. Bf3 O-O 12. c3 d5 13. e5 Ne8 {½-½ (43) Stojkovic,A (1956)-Sprenar,P (2236) Marianske Lazne 2019}) 8. Nb5 {[%emt 0:02:08]} Qb8 {[%emt 0:01:52]} 9. Bf3 $146 {[%emt 0:02:12]} ({Predecessor:} 9. exd5 Nxd5 10. Bg5 a6 11. c4 Nf4 12. Bxf4 Qxf4 13. g3 Qb8 {1-0 (42) Schiffer,S (2077)-Serbu,E (2121) Germany 2015}) 9... a6 {[%emt 0:03:16]} 10. exd5 {[%emt 0:00:23]} Nxd5 {[%emt 0:01:15]} 11. Nd4 {[%emt 0:01:43]} Bd7 {[%emt 0:07:28]} 12. Nc4 {[%emt 0:01:46]} Nxe3 {[%emt 0:01:56]} 13. fxe3 {[%emt 0:02:32]} Qc7 {[%emt 0:01:29]} 14. Qe2 {[%emt 0:03:52]} Rc8 {[%emt 0:05:37]} 15. Nd2 {[%emt 0:06:51]} Nxd4 {[%emt 0:04:53]} 16. exd4 {[%emt 0:00:07]} Qxc2 {[%emt 0:00:26]} 17. Bxb7 {[%emt 0:01:46]} Qxb2 {[%emt 0:00:35]} 18. Rb1 {[%emt 0:00:23]} Rc1+ {[%emt 0:00:38]} 19. Rxc1 {[%emt 0:02:30]} Qxc1+ {[%emt 0:00:07]} 20. Qd1 {[%emt 0:00:11]} Qb2 {[%emt 0:02:03] Double Attack} 21. Bxa6 $19 {[%emt 0:05:53]} Bb4 {[%emt 0:03:43]} 22. Rf1 {[%emt 0:16:31]} Qxd4 {[%emt 0:01:18]} 23. Rf2 {[%emt 0:00:47]} Qe3+ {[%emt 0:01:15]} 24. Kf1 {[%emt 0:02:53]} Bc5 {[%emt 0:00:12]} 25. Rf3 {[%emt 0:01:03]} Qg1+ {[%emt 0:00:25]} 26. Ke2 {[%emt 0:00:00]} Qxg2+ {[%emt 0:00:27]} 27. Ke1 {[%emt 0:01:46]} Qxh2 {[%emt 0:01:24]} 28. Qb3 {[%emt 0:01:29]} Qe5+ {[%emt 0:01:15]} 29. Be2 {[%emt 0:01:17]} O-O {[%emt 0:00:46]} 30. Rd3 {[%emt 0:01:41]} Bb5 {[%emt 0:01:55]} 31. Qxb5 {[%emt 0:00:39]} Bf2+ {[%emt 0:00:12]} 32. Kxf2 {[%emt 0:00:55]} Qxb5 {[%emt 0:00:05]} 33. Ne4 {[%emt 0:00:26]} Qb6+ {[%emt 0:01:30]} 34. Kg2 {[%emt 0:00:28]} f5 {[%emt 0:00:46]} 35. Nf2 {[%emt 0:02:07]} e5 {[%emt 0:01:37]} 36. Rb3 {[%emt 0:00:18]} Qc6+ {[%emt 0:00:21]} 37. Kg1 {[%emt 0:00:31]} e4 {[%emt 0:00:40]} 38. Rb4 {[%emt 0:05:01]} Qc3 {[%emt 0:01:27]} 39. Rb3 {[%emt 0:00:24]} Qe1+ {[%emt 0:01:49]} 40. Bf1 {[%emt 0:00:07]} e3 {[%emt 0:00:37]} 41. Nd3 {[%emt 0:01:03]} Qg3+ {[%emt 0:00:06]} 42. Bg2 {[%emt 0:03:30]} e2 {[%emt 0:00:14]} 43. Kh1 {[%emt 0:02:04]} f4 {[%emt 0:01:50]} 0-1

[Event "Kragero Resort Chess A 2019"]
[Site "Kragero"]
[Date "2019.02.22"]
[Round "4.29"]
[White "Aarnes, Eirik"]
[Black "Gonzalez, Francisco Silva"]
[Result "1-0"]
[ECO "C68"]
[WhiteElo "1843"]
[BlackElo "2142"]
[Annotator "NA"]
[PlyCount "125"]
[EventDate "2019.02.20"]
[EventType "swiss"]
[EventCountry "NOR"]
[SourceTitle "playchess.com"]
[Source "ChessBase"]
[SourceQuality "1"]
[TimeControl "5400+30"]

1. e4 {[%emt 0:00:00]} e5 {[%emt 0:16:56]} 2. Nf3 {[%emt 0:00:00]} Nc6 {[%emt 0:01:09]} 3. Bb5 {[%emt 0:00:00]} a6 {[%emt 0:01:13]} 4. Bxc6 {[%emt 0:00:04]} dxc6 {[%emt 0:01:22]} 5. O-O {[%emt 0:00:21]} Bd6 {[%emt 0:00:59]} 6. d4 {[%emt 0:00:07]} exd4 {[%emt 0:00:08]} 7. Qxd4 {[%emt 0:00:05]} f6 {[%emt 0:00:09]} 8. Be3 {[%emt 0:00:09]} Ne7 {[%emt 0:00:14]} 9. Nbd2 {[%emt 0:00:14]} Be6 {[%emt 0:00:15]} 10. Qc3 {[%emt 0:07:03]} Ng6 {[%emt 0:01:02]} 11. Nd4 {[%emt 0:00:18]} Qe7 {[%emt 0:00:20]} 12. Nxe6 {[%emt 0:02:40]} Qxe6 {[%emt 0:00:08]} 13. Qb3 {[%emt 0:00:25]} Qxb3 {[%emt 0:00:47]} 14. axb3 {[%emt 0:00:06]} O-O-O {[%emt 0:00:15]} 15. Rad1 {[%emt 0:08:22]} Rhe8 {[%emt 0:00:34]} 16. Rfe1 {[%emt 0:02:12]} Re7 {[%emt 0:01:56]} 17. g3 {[%emt 0:05:19]} Bb4 {[%emt 0:02:00]} 18. c3 {[%emt 0:14:18]} Bd6 {[%emt 0:00:32]} 19. f4 {[%emt 0:00:33]} Red7 {[%emt 0:00:59]} 20. Kf2 {[%emt 0:05:28]} b6 {[%emt 0:05:19]} 21. Ke2 {[%emt 0:01:21]} b5 {[%emt 0:00:25]} 22. b4 {[%emt 0:03:00]} Re8 {[%emt 0:00:07]} 23. Kf3 {[%emt 0:01:31]} Bf8 {[%emt 0:00:29]} 24. Nb3 {[%emt 0:02:30]} Rde7 {[%emt 0:00:24]} 25. Bc5 {[%emt 0:01:08]} Rf7 {[%emt 0:01:08]} 26. Ra1 {[%emt 0:09:37]} Bxc5 {[%emt 0:01:22]} 27. Nxc5 {[%emt 0:00:09]} Kd8 {[%emt 0:00:33]} 28. Red1+ {[%emt 0:02:12]} Ke7 {[%emt 0:00:05]} 29. Rxa6 {[%emt 0:00:32]} Kf8 {[%emt 0:00:08]} 30. Rxc6 {[%emt 0:00:39]} Rfe7 {[%emt 0:01:18]} 31. Rd7 {[%emt 0:01:23]} Rxd7 {[%emt 0:00:04]} 32. Nxd7+ {[%emt 0:00:11]} Ke7 {[%emt 0:00:05]} 33. Nc5 {[%emt 0:00:19]} Rc8 {[%emt 0:00:15]} 34. h4 {[%emt 0:01:52]} h5 {[%emt 0:00:47]} 35. e5 {[%emt 0:03:12]} Kf7 {[%emt 0:00:29]} 36. exf6 {[%emt 0:01:09]} gxf6 {[%emt 0:00:13]} 37. Ne4 {[%emt 0:01:04]} Ke7 {[%emt 0:00:18]} 38. Nxf6 {[%emt 0:01:00]} Nf8 {[%emt 0:00:54]} 39. Nxh5 {[%emt 0:01:17]} Ne6 {[%emt 0:00:10]} 40. f5 {[%emt 0:00:51]} Nd8 {[%emt 0:00:09]} 41. Rh6 {[%emt 0:00:26]} Ra8 {[%emt 0:00:08]} 42. Rh7+ {[%emt 0:00:48]} Kd6 {[%emt 0:00:08]} 43. Rh8 {[%emt 0:01:43]} Ke7 {[%emt 0:00:10]} 44. f6+ {[%emt 0:00:32]} Kf7 {[%emt 0:00:05]} 45. g4 {[%emt 0:00:34]} Kg6 {[%emt 0:00:10]} 46. g5 {[%emt 0:02:44]} Rb8 {[%emt 0:00:08]} 47. Rh6+ {[%emt 0:00:19]} Kf5 {[%emt 0:00:15]} 48. g6 {[%emt 0:00:47]} Nc6 {[%emt 0:00:07]} 49. Ng3+ {[%emt 0:02:23]} Kxf6 {[%emt 0:01:17]} 50. g7+ {[%emt 0:00:08]} Kxg7 {[%emt 0:00:05]} 51. Rxc6 {[%emt 0:00:05]} Rf8+ {[%emt 0:00:22]} 52. Kg4 {[%emt 0:00:14]} Rf7 {[%emt 0:00:06]} 53. Nf5+ {[%emt 0:00:30]} Kh7 {[%emt 0:00:15]} 54. Rh6+ {[%emt 0:00:36]} Kg8 {[%emt 0:00:08]} 55. Re6 {[%emt 0:00:23]} Rd7 {[%emt 0:00:17]} 56. Rg6+ {[%emt 0:06:11]} Kh8 {[%emt 0:00:20]} 57. Kg5 {[%emt 0:00:34]} Rd2 {[%emt 0:00:56]} 58. Nh6 {[%emt 0:00:34]} Rxb2 {[%emt 0:00:45]} 59. Rc6 {[%emt 0:01:57]} Rd2 {[%emt 0:00:35]} 60. Rxc7 {[%emt 0:00:18]} Rd3 {[%emt 0:01:00]} 61. Ng4 {[%emt 0:00:15]} Rd5+ {[%emt 0:00:22]} 62. Kg6 {[%emt 0:00:26]} Rd6+ {[%emt 0:02:45]} 63. Nf6 {[%emt 0:00:16]} 1-0

[Event "Kragero Resort Chess A 2019"]
[Site "Kragero"]
[Date "2019.02.22"]
[Round "4.30"]
[White "Tenold, Andreas"]
[Black "Saltvedt, Martin"]
[Result "1-0"]
[ECO "B51"]
[WhiteElo "1822"]
[BlackElo "2095"]
[Annotator "NA"]
[PlyCount "35"]
[EventDate "2019.02.20"]
[EventType "swiss"]
[EventCountry "NOR"]
[SourceTitle "playchess.com"]
[Source "ChessBase"]
[SourceQuality "1"]
[TimeControl "5400+30"]

1. e4 {[%emt 0:00:00]} c5 {[%emt 0:00:00]} 2. Nf3 {[%emt 0:00:00]} Nc6 {[%emt 0:00:00]} 3. Bb5 {[%emt 0:00:00]} d6 {[%emt 0:00:24]} 4. Bxc6+ {[%emt 0:00:03]} bxc6 {[%emt 0:00:05]} 5. O-O {[%emt 0:00:19]} e6 {[%emt 0:01:25]} 6. Re1 {[%emt 0:01:23]} Be7 {[%emt 0:00:22]} 7. d3 {[%emt 0:00:41]} Ba6 {[%emt 0:02:41]} 8. Nbd2 {[%emt 0:04:35]} d5 {[%emt 0:05:15]} 9. Ne5 {[%emt 0:16:51]} Qc7 {[%emt 0:03:54]} 10. exd5 {[%emt 0:02:17]} cxd5 {[%emt 0:05:16]} 11. Qg4 {[%emt 0:01:36]} Bc8 {[%emt 0:18:31]} 12. Qxg7 {[%emt 0:06:24]} Bf6 {[%emt 0:00:10]} 13. Qg3 {[%emt 0:00:30]} Ne7 {[%emt 0:01:58]} 14. Ng4 {[%emt 0:00:48]} Qc6 {[%emt 0:12:05]} 15. Nxf6+ {[%emt 0:00:45]} Kf8 {[%emt 0:00:32]} 16. Nf3 {[%emt 0:02:50]} Nf5 {[%emt 0:00:51]} 17. Qe5 {[%emt 0:00:27]} Bb7 {[%emt 0:01:35]} 18. Qxf5 {[%emt 0:01:00]} 1-0

[Event "Kragero Resort Chess A 2019"]
[Site "Kragero"]
[Date "2019.02.22"]
[Round "4.31"]
[White "Kizatbay, Abyl"]
[Black "Sidali, Elias Hulleberg"]
[Result "1/2-1/2"]
[ECO "B13"]
[WhiteElo "2084"]
[BlackElo "1840"]
[Annotator "NA"]
[PlyCount "61"]
[EventDate "2019.02.20"]
[EventType "swiss"]
[EventCountry "NOR"]
[SourceTitle "playchess.com"]
[Source "ChessBase"]
[SourceQuality "1"]
[TimeControl "5400+30"]

1. e4 {[%emt 0:00:00]} c6 {[%emt 0:00:00]} 2. d4 {[%emt 0:00:30]} d5 {[%emt 0:00:30]} 3. exd5 {[%emt 0:00:30]} cxd5 {[%emt 0:00:30]} 4. Nf3 {[%emt 0:00:19]} Nc6 {[%emt 0:00:14]} 5. Ne5 {[%emt 0:00:11]} Nf6 {[%emt 0:02:39]} 6. Bb5 {[%emt 0:00:23]} Bd7 {[%emt 0:00:34]} 7. Nxd7 {[%emt 0:00:24]} Qxd7 {[%emt 0:00:38]} 8. c3 {[%emt 0:00:11]} e6 {[%emt 0:00:22]} 9. Nd2 {[%emt 0:00:29]} Bd6 {[%emt 0:00:06]} 10. O-O {[%emt 0:00:30]} O-O {[%emt 0:00:06]} 11. f4 {[%emt 0:08:24]} a6 {[%emt 0:07:54]} 12. Bd3 {[%emt 0:00:07]} b5 {[%emt 0:00:05]} 13. a3 {[%emt 0:04:14]} Na5 {[%emt 0:03:41]} 14. Nf3 {[%emt 0:04:29]} Nc4 {[%emt 0:04:33]} 15. Qe2 {[%emt 0:06:18]} Bc7 {[%emt 0:00:38]} 16. Ne5 {[%emt 0:01:30]} Qe7 {[%emt 0:00:34]} 17. g4 {[%emt 0:05:56]} Nd6 {[%emt 0:01:03]} 18. Be3 $11 {[%emt 0:14:01]} (18. f5 $5 {[%cal Rg4g5]}) 18... Nfe4 {[%emt 0:06:33]} 19. a4 {[%emt 0:05:08]} f6 {[%emt 0:17:26]} 20. Nf3 {[%emt 0:06:30]} Qd7 {[%emt 0:00:46]} 21. Ra2 {[%emt 0:05:22]} Rfb8 {[%emt 0:03:47]} 22. Rc1 {[%emt 0:05:43]} bxa4 {[%emt 0:01:30]} 23. Rca1 {[%emt 0:01:34]} a3 {[%emt 0:03:36]} 24. Rxa3 {[%emt 0:01:09]} a5 {[%emt 0:02:16]} 25. h3 {[%emt 0:08:05]} Qc6 {[%emt 0:04:34]} 26. R3a2 {[%emt 0:05:54]} Rb7 {[%emt 0:02:53]} 27. Bc1 {[%emt 0:05:00]} Bb6 {[%emt 0:01:24]} 28. Be3 {[%emt 0:01:49]} Bd8 {[%emt 0:01:57]} 29. Bc1 {[%emt 0:00:32]} Bb6 {[%emt 0:00:05]} 30. Be3 {[%emt 0:01:33]} Bd8 {[%emt 0:00:07]} 31. Bc1 {[%emt 0:02:38]} 1/2-1/2

[Event "Kragero Resort Chess A 2019"]
[Site "Kragero"]
[Date "2019.02.22"]
[Round "5.5"]
[White "Miedema, David"]
[Black "Holm, Kristian Stuvik"]
[Result "0-1"]
[ECO "C96"]
[WhiteElo "2356"]
[BlackElo "2456"]
[Annotator "ChessBase"]
[PlyCount "126"]
[EventDate "2019.02.20"]
[EventType "swiss"]
[EventCountry "NOR"]
[SourceTitle "playchess.com"]
[Source "ChessBase"]
[SourceQuality "1"]
[TimeControl "5400+30"]

1. e4 {[%emt 0:00:00]} e5 {[%emt 0:01:54]} 2. Nf3 {[%emt 0:00:00]} Nc6 {[%emt 0:00:07]} 3. Bb5 {[%emt 0:00:20]} a6 {[%emt 0:00:11]} 4. Ba4 {[%emt 0:00:03]} Nf6 {[%emt 0:00:05]} 5. O-O {[%emt 0:00:06]} Be7 {[%emt 0:00:20]} 6. Re1 {[%emt 0:00:05]} b5 {[%emt 0:00:08]} 7. Bb3 {[%emt 0:00:04]} d6 {[%emt 0:00:06]} 8. c3 {[%emt 0:00:03]} O-O {[%emt 0:00:08]} 9. h3 {[%emt 0:00:03]} Na5 {[%emt 0:00:40]} 10. Bc2 {[%emt 0:00:07]} c5 {[%emt 0:00:04]} 11. d4 {[%emt 0:00:11]} Nd7 {[%emt 0:00:06]} 12. a4 {[%emt 0:01:12]} Rb8 {[%emt 0:02:28]} 13. Nbd2 {[%emt 0:01:15]} exd4 {[%emt 0:00:23]} 14. cxd4 {[%emt 0:00:05]} Nc6 {[%emt 0:01:59]} 15. d5 {[%emt 0:00:19]} Nce5 {[%emt 0:00:05]} 16. Nxe5 {[%emt 0:04:45]} Nxe5 {[%emt 0:01:32]} 17. f4 {[%emt 0:00:08]} Ng6 {[%emt 0:00:04]} 18. Nf3 {[%emt 0:10:42]} Bh4 {[%emt 0:00:33]} 19. Nxh4 {[%emt 0:01:40]} Qxh4 {[%emt 0:00:16]} 20. Rf1 {[%emt 0:04:05]} f5 {[%emt 0:04:28]} 21. axb5 {[%emt 0:09:38]} axb5 {[%emt 0:00:18]} 22. e5 {[%emt 0:01:11]} Bb7 {[%emt 0:00:18]} 23. b4 {[%emt 0:11:51]} cxb4 {[%emt 0:12:25]} 24. exd6 {[%emt 0:11:10]} Qf6 {[%emt 0:04:27]} 25. Rb1 {[%emt 0:00:49]} Qxd6 {[%emt 0:02:12]} 26. Qd4 {[%emt 0:06:32]} Rf7 {[%emt 0:07:04]} 27. Bb3 {[%emt 0:03:14]} Rd8 {[%emt 0:07:21]} 28. Bb2 {[%emt 0:09:04]} Bxd5 {[%emt 0:05:43]} 29. Rbd1 {[%emt 0:00:21]} Rfd7 {[%emt 0:00:20]} 30. Qe3 {[%emt 0:02:14]} Qe7 {[%emt 0:01:12]} 31. Bxd5+ {[%emt 0:02:45]} Rxd5 {[%emt 0:00:13]} 32. Qb3 {[%emt 0:00:46]} Qf7 {[%emt 0:00:32]} 33. Rxd5 {[%emt 0:00:08]} Qxd5 {[%emt 0:00:57]} 34. Qxb4 {[%emt 0:00:38]} h6 {[%emt 0:00:42]} 35. Rf3 {[%emt 0:03:45]} Kh7 {[%emt 0:01:40]} 36. Kh2 {[%emt 0:03:15]} Qc4 {[%emt 0:01:58]} 37. Qxc4 {[%emt 0:01:53]} bxc4 {[%emt 0:00:03]} 38. Rf2 {[%emt 0:00:53]} Kg8 {[%emt 0:06:10]} 39. g4 {[%emt 0:01:52]} Kf7 {[%emt 0:04:16]} 40. Kg2 {[%emt 0:04:04]} Rd3 {[%emt 0:01:25]} 41. Be5 {[%emt 0:03:13]} fxg4 {[%emt 0:02:36]} 42. hxg4 {[%emt 0:00:21]} Nxe5 {[%emt 0:00:05]} 43. fxe5+ {[%emt 0:00:02]} Ke6 {[%emt 0:00:19]} 44. Rf4 {[%emt 0:00:34]} c3 {[%emt 0:00:31]} 45. Rc4 {[%emt 0:00:04]} Kxe5 {[%emt 0:00:11]} 46. Rc7 {[%emt 0:01:23]} g5 {[%emt 0:05:53]} 47. Kf2 {[%emt 0:00:08]} Kd4 {[%emt 0:00:39]} 48. Rc6 {[%emt 0:01:46]} Rd2+ {[%emt 0:00:45]} 49. Ke1 {[%emt 0:00:05]} Rh2 {[%emt 0:00:10]} 50. Kd1 {[%emt 0:00:07]} Kd3 {[%emt 0:03:07]} 51. Rd6+ {[%emt 0:00:03]} Ke4 {[%emt 0:00:31]} 52. Rf6 {[%emt 0:00:01]} Ke3 {[%emt 0:01:07]} 53. Kc1 {[%emt 0:00:17]} Ke4 {[%emt 0:05:01]} 54. Kd1 {[%emt 0:00:06]} Ke5 {[%emt 0:00:08]} 55. Rf5+ {[%emt 0:00:14]} Kd4 {[%emt 0:01:34]} 56. Rf6 {[%emt 0:00:05]} c2+ {[%emt 0:00:54]} 57. Kc1 {[%emt 0:00:02]} Ke5 {[%emt 0:03:51]} 58. Rf5+ {[%emt 0:00:04]} Ke4 {[%emt 0:00:00]} 59. Rf6 {[%emt 0:00:05]} Rg2 {[%emt 0:00:00]} 60. Kb2 {[%emt 0:01:56]} Rxg4 {[%emt 0:00:00]} 61. Rxh6 {[%emt 0:00:06]} Rg2 {[%emt 0:00:00]} 62. Rf6 {[%emt 0:00:06]} g4 {[%emt 0:00:00]} 63. Kc1 {[%emt 0:00:30]} Rh2 {[%emt 0:00:00]} 0-1